[Event "*** Titled Tuesday Blitz"]
[Site "Chess.com"]
[Date "2020.02.04"]
[Round "1"]
[White "bhavesh1810"]
[Black "MiroMiljkovic"]
[Result "1-0"]
[WhiteElo "2089"]
[BlackElo "2540"]
[TimeControl "180+2"]
[EndTime "9:09:30 PST"]
[Termination "bhavesh1810 won by resignation"]

1. e4 {[%clk 0:03:00.5]} 1... c5 {[%clk 0:03:00.3]} 2. Nf3 {[%clk 0:03:01.1]}
2... e6 {[%clk 0:03:01.1]} 3. d4 {[%clk 0:03:02.1]} 3... cxd4 {[%clk 0:03:03]}
4. Nxd4 {[%clk 0:03:04]} 4... a6 {[%clk 0:03:04.9]} 5. c4 {[%clk 0:03:03.4]}
5... Qc7 {[%clk 0:03:04.5]} 6. Nc3 {[%clk 0:03:04.2]} 6... d6 {[%clk 0:03:03.6]}
7. Be3 {[%clk 0:03:05.1]} 7... Nf6 {[%clk 0:03:04.5]} 8. Be2 {[%clk 0:03:06.3]}
8... Be7 {[%clk 0:03:05.7]} 9. O-O {[%clk 0:03:07.6]} 9... O-O {[%clk
0:03:07.3]} 10. f3 {[%clk 0:03:09.1]} 10... Nbd7 {[%clk 0:03:08.6]} 11. Qd2
{[%clk 0:03:10.5]} 11... b6 {[%clk 0:03:09]} 12. Rac1 {[%clk 0:03:11.8]} 12...
Bb7 {[%clk 0:03:10.4]} 13. b3 {[%clk 0:03:13.7]} 13... Rac8 {[%clk 0:03:11.1]}
14. Rfd1 {[%clk 0:03:15.1]} 14... Qb8 {[%clk 0:03:12.1]} 15. Kh1 {[%clk
0:03:16.4]} 15... Rfd8 {[%clk 0:03:12.3]} 16. Bf1 {[%clk 0:03:17.4]} 16... d5
{[%clk 0:03:09.2]} 17. cxd5 {[%clk 0:03:15.3]} 17... exd5 {[%clk 0:03:09.7]} 18.
Nxd5 {[%clk 0:03:15.7]} 18... Nxd5 {[%clk 0:03:06.7]} 19. exd5 {[%clk
0:03:17.6]} 19... Rxc1 {[%clk 0:03:02]} 20. Rxc1 {[%clk 0:03:18.4]} 20... Nf6
{[%clk 0:02:57.8]} 21. Bf4 {[%clk 0:03:05.4]} 21... Bd6 {[%clk 0:02:47.5]} 22.
Bxd6 {[%clk 0:03:01.9]} 22... Qxd6 {[%clk 0:02:49.4]} 23. Nf5 {[%clk 0:03:03.2]}
23... Qf8 {[%clk 0:02:33.2]} 24. d6 {[%clk 0:03:01.6]} 24... g6 {[%clk
0:02:01.5]} 25. Qg5 {[%clk 0:02:49.9]} 25... Nh5 {[%clk 0:01:43.6]} 26. Ne7+
{[%clk 0:02:49.6]} 26... Kg7 {[%clk 0:01:41.1]} 27. Qe5+ {[%clk 0:02:42]} 27...
f6 {[%clk 0:01:28.7]} 28. Qe6 {[%clk 0:02:07.4]} 28... Qf7 {[%clk 0:01:28.4]}
29. Qxf7+ {[%clk 0:02:02.7]} 29... Kxf7 {[%clk 0:01:30.3]} 30. Rc7 {[%clk
0:02:03.8]} 30... Ke6 {[%clk 0:01:24.9]} 31. Rxb7 {[%clk 0:02:02.1]} 31... Rxd6
{[%clk 0:01:23.2]} 32. g3 {[%clk 0:01:51.9]} 32... f5 {[%clk 0:01:13.6]} 33. Nc8
{[%clk 0:01:50.9]} 33... Rd1 {[%clk 0:01:12.8]} 34. Kg1 {[%clk 0:01:51]} 34...
b5 {[%clk 0:01:04.7]} 35. Rxh7 {[%clk 0:01:39.9]} 35... Nf6 {[%clk 0:01:02.3]}
36. Ra7 {[%clk 0:01:39.7]} 36... Nd5 {[%clk 0:01:01.7]} 37. Rxa6+ {[%clk
0:01:40]} 37... Ke5 {[%clk 0:01:03.2]} 38. Rd6 {[%clk 0:01:22.6]} 38... Rc1
{[%clk 0:01:00.3]} 39. Rd8 {[%clk 0:01:20]} 39... Ne3 {[%clk 0:00:58.4]} 40.
Re8+ {[%clk 0:01:21.2]} 40... Kd4 {[%clk 0:00:59.5]} 41. Rxe3 {[%clk 0:01:14.4]}
41... Kxe3 {[%clk 0:01:00.1]} 42. Nd6 {[%clk 0:01:15.9]} 42... b4 {[%clk
0:00:59.1]} 43. f4 {[%clk 0:01:13.8]} 43... Rc2 {[%clk 0:00:57]} 44. Nc4+ {[%clk
0:01:14.9]} 44... Kd4 {[%clk 0:00:55.9]} 45. Ne5 {[%clk 0:01:16]} 45... Rxa2
{[%clk 0:00:51.7]} 46. Nxg6 {[%clk 0:01:16.8]} 46... Rc2 {[%clk 0:00:46.9]} 47.
Ne5 {[%clk 0:01:09.5]} 47... Rc1 {[%clk 0:00:38.6]} 48. h4 {[%clk 0:01:09.6]}
48... Rb1 {[%clk 0:00:37.2]} 49. h5 {[%clk 0:01:10]} 49... Rxb3 {[%clk
0:00:38.6]} 50. Kg2 {[%clk 0:01:05.9]} 50... Rc3 {[%clk 0:00:35]} 51. h6 {[%clk
0:01:05.5]} 51... b3 {[%clk 0:00:31.9]} 52. h7 {[%clk 0:01:04.1]} 52... Rc8
{[%clk 0:00:31.5]} 53. Bd3 {[%clk 0:01:02.3]} 53... Rf8 {[%clk 0:00:18.3]} 54.
Bxf5 {[%clk 0:01:02.1]} 54... b2 {[%clk 0:00:19.6]} 55. Bb1 {[%clk 0:01:02.2]}
55... Kc3 {[%clk 0:00:17.3]} 56. Ng6 {[%clk 0:01:01.9]} 56... Rd8 {[%clk
0:00:15.2]} 57. h8=Q+ {[%clk 0:01:02.7]} 1-0

[Event "*** Titled Tuesday Blitz"]
[Site "Chess.com"]
[Date "2020.02.04"]
[Round "1"]
[White "petrpalachev"]
[Black "ChadBiryani"]
[Result "1/2-1/2"]
[WhiteElo "2669"]
[BlackElo "2300"]
[TimeControl "180+2"]
[EndTime "9:09:32 PST"]
[Termination "Game drawn by repetition"]

1. d4 {[%clk 0:02:40.3]} 1... f5 {[%clk 0:02:59.3]} 2. c4 {[%clk 0:02:41]} 2...
e6 {[%clk 0:02:58.6]} 3. g3 {[%clk 0:02:42.9]} 3... Nf6 {[%clk 0:02:59.1]} 4.
Bg2 {[%clk 0:02:44.8]} 4... Be7 {[%clk 0:02:59.4]} 5. Nf3 {[%clk 0:02:46.7]}
5... O-O {[%clk 0:03:00.6]} 6. O-O {[%clk 0:02:48.6]} 6... d6 {[%clk 0:03:00]}
7. Nc3 {[%clk 0:02:50.5]} 7... Ne4 {[%clk 0:02:58.8]} 8. Nxe4 {[%clk 0:02:50.2]}
8... fxe4 {[%clk 0:02:58.8]} 9. Nd2 {[%clk 0:02:52.1]} 9... d5 {[%clk
0:02:52.7]} 10. f3 {[%clk 0:02:53.1]} 10... Nc6 {[%clk 0:02:40]} 11. e3 {[%clk
0:02:42.1]} 11... exf3 {[%clk 0:02:24.6]} 12. Rxf3 {[%clk 0:02:44]} 12... Bf6
{[%clk 0:02:15]} 13. Qb3 {[%clk 0:02:34.9]} 13... Na5 {[%clk 0:02:04]} 14. Qc3
{[%clk 0:02:31.6]} 14... c6 {[%clk 0:01:59.6]} 15. b4 {[%clk 0:02:30]} 15...
Nxc4 {[%clk 0:01:56.8]} 16. Nxc4 {[%clk 0:02:31.9]} 16... dxc4 {[%clk
0:01:57.8]} 17. Qxc4 {[%clk 0:02:33.8]} 17... Kh8 {[%clk 0:01:56.1]} 18. Bb2
{[%clk 0:02:32.3]} 18... Qe8 {[%clk 0:01:49.1]} 19. Raf1 {[%clk 0:02:13.2]}
19... Bd7 {[%clk 0:01:48.6]} 20. e4 {[%clk 0:01:44.8]} 20... Qe7 {[%clk
0:01:40.9]} 21. e5 {[%clk 0:01:27.1]} 21... Bg5 {[%clk 0:01:39.7]} 22. h4 {[%clk
0:01:27.4]} 22... Bh6 {[%clk 0:01:31.6]} 23. a3 {[%clk 0:01:25]} 23... Rxf3
{[%clk 0:01:23.4]} 24. Rxf3 {[%clk 0:01:23.4]} 24... Rf8 {[%clk 0:01:24.1]} 25.
Qf1 {[%clk 0:01:24.3]} 25... Kg8 {[%clk 0:01:22.6]} 26. Kh2 {[%clk 0:00:54.2]}
26... Be8 {[%clk 0:01:17.1]} 27. Bc3 {[%clk 0:00:30.2]} 27... Bh5 {[%clk
0:01:06.7]} 28. Rxf8+ {[%clk 0:00:30.7]} 28... Qxf8 {[%clk 0:01:07.6]} 29. Qxf8+
{[%clk 0:00:32.6]} 29... Kxf8 {[%clk 0:01:09.5]} 30. b5 {[%clk 0:00:34.5]} 30...
cxb5 {[%clk 0:01:07.7]} 31. Bxb7 {[%clk 0:00:34.9]} 31... Be3 {[%clk 0:00:54]}
32. Bc6 {[%clk 0:00:31.5]} 32... Be2 {[%clk 0:00:52.4]} 33. Bb4+ {[%clk
0:00:26.6]} 33... Kf7 {[%clk 0:00:52.5]} 34. Bc5 {[%clk 0:00:28.5]} 34... a5
{[%clk 0:00:50.4]} 35. Kg2 {[%clk 0:00:19.2]} 35... h6 {[%clk 0:00:49.3]} 36.
Bd7 {[%clk 0:00:17.6]} 36... g5 {[%clk 0:00:48.7]} 37. hxg5 {[%clk 0:00:18.4]}
37... hxg5 {[%clk 0:00:50.6]} 38. Bb6 {[%clk 0:00:19.5]} 38... b4 {[%clk
0:00:50.7]} 39. Bxa5 {[%clk 0:00:19.6]} 39... bxa3 {[%clk 0:00:50.9]} 40. Bc3
{[%clk 0:00:21.5]} 40... a2 {[%clk 0:00:52.1]} 41. Ba4 {[%clk 0:00:16.8]} 41...
g4 {[%clk 0:00:36]} 42. Bb3 {[%clk 0:00:16.3]} 42... Bf3+ {[%clk 0:00:37.2]} 43.
Kh2 {[%clk 0:00:17]} 43... Bd5 {[%clk 0:00:38.4]} 44. Bc2 {[%clk 0:00:11.9]}
44... Ke7 {[%clk 0:00:31.6]} 45. Bd3 {[%clk 0:00:12.1]} 45... Kd7 {[%clk
0:00:28.8]} 46. Be2 {[%clk 0:00:13.2]} 46... Bf3 {[%clk 0:00:28.8]} 47. Bc4
{[%clk 0:00:09.8]} 47... Bd5 {[%clk 0:00:27.3]} 48. Be2 {[%clk 0:00:11.2]} 48...
Bf3 {[%clk 0:00:22]} 49. Bc4 {[%clk 0:00:12.1]} 49... Bd5 {[%clk 0:00:22.4]} 50.
Be2 {[%clk 0:00:12.9]} 1/2-1/2

[Event "*** Titled Tuesday Blitz"]
[Site "Chess.com"]
[Date "2020.02.04"]
[Round "1"]
[White "BvsN"]
[Black "EugeneRougon"]
[Result "0-1"]
[WhiteElo "2368"]
[BlackElo "2738"]
[TimeControl "180+2"]
[EndTime "9:09:34 PST"]
[Termination "EugeneRougon won by resignation"]

1. d4 {[%clk 0:03:01.9]} 1... d5 {[%clk 0:02:59.6]} 2. Nf3 {[%clk 0:03:02.3]}
2... Nf6 {[%clk 0:03:00.7]} 3. e3 {[%clk 0:03:03.6]} 3... c5 {[%clk 0:03:00.9]}
4. dxc5 {[%clk 0:03:03.3]} 4... e6 {[%clk 0:02:59.2]} 5. b4 {[%clk 0:03:04.1]}
5... a5 {[%clk 0:02:53]} 6. c3 {[%clk 0:03:05]} 6... axb4 {[%clk 0:02:47.3]} 7.
cxb4 {[%clk 0:03:04.2]} 7... b6 {[%clk 0:02:49.2]} 8. Bb5+ {[%clk 0:03:03]} 8...
Bd7 {[%clk 0:02:43.5]} 9. Bxd7+ {[%clk 0:03:03.9]} 9... Nbxd7 {[%clk 0:02:40]}
10. a4 {[%clk 0:03:01.2]} 10... bxc5 {[%clk 0:02:38.1]} 11. b5 {[%clk
0:03:02.4]} 11... Bd6 {[%clk 0:02:32]} 12. O-O {[%clk 0:03:01.1]} 12... O-O
{[%clk 0:02:33.6]} 13. Nbd2 {[%clk 0:03:01.8]} 13... Qc7 {[%clk 0:02:29.5]} 14.
Bb2 {[%clk 0:03:00.4]} 14... c4 {[%clk 0:02:25.9]} 15. Qc2 {[%clk 0:03:01.3]}
15... h6 {[%clk 0:02:23.1]} 16. h3 {[%clk 0:02:58.2]} 16... Rfc8 {[%clk
0:02:23.1]} 17. Bc3 {[%clk 0:02:56.2]} 17... e5 {[%clk 0:02:16.7]} 18. a5 {[%clk
0:02:36]} 18... Nc5 {[%clk 0:01:37.5]} 19. Rfb1 {[%clk 0:02:26]} 19... Nd3
{[%clk 0:01:28.8]} 20. b6 {[%clk 0:01:54.1]} 20... Qb7 {[%clk 0:01:29]} 21. Qa4
{[%clk 0:01:34.6]} 21... Ra6 {[%clk 0:01:29.5]} 22. Ne1 {[%clk 0:00:41.6]} 22...
Nxe1 {[%clk 0:01:21.7]} 23. Rxe1 {[%clk 0:00:42.6]} 23... Rca8 {[%clk
0:01:23.6]} 24. Red1 {[%clk 0:00:36.3]} 24... Rxb6 {[%clk 0:01:07.7]} 25. axb6
{[%clk 0:00:24.9]} 25... Rxa4 {[%clk 0:01:08.7]} 26. Rxa4 {[%clk 0:00:25.5]}
26... Qxb6 {[%clk 0:01:10]} 27. Rb1 {[%clk 0:00:26.3]} 27... Qc6 {[%clk
0:01:08]} 28. Ra7 {[%clk 0:00:21.6]} 28... Bc5 {[%clk 0:01:07.2]} 29. Rb8+
{[%clk 0:00:20]} 29... Kh7 {[%clk 0:01:04.6]} 30. Rxf7 {[%clk 0:00:20.3]} 30...
d4 {[%clk 0:01:05.6]} 31. exd4 {[%clk 0:00:10.4]} 31... exd4 {[%clk 0:01:07.5]}
32. Ba1 {[%clk 0:00:10.4]} 32... c3 {[%clk 0:00:41.1]} 33. Nb3 {[%clk
0:00:10.8]} 33... c2 {[%clk 0:00:29.3]} 34. Rbb7 {[%clk 0:00:09.7]} 34... Ne8
{[%clk 0:00:29.7]} 35. Bb2 {[%clk 0:00:07.7]} 35... Qd5 {[%clk 0:00:18.7]} 36.
Nc1 {[%clk 0:00:07.3]} 36... Qe5 {[%clk 0:00:15.6]} 37. Nd3 {[%clk 0:00:03.4]}
37... Qd5 {[%clk 0:00:16.8]} 38. Nc1 {[%clk 0:00:04.2]} 38... h5 {[%clk
0:00:16.2]} 39. Nd3 {[%clk 0:00:05.2]} 39... h4 {[%clk 0:00:17]} 40. f3 {[%clk
0:00:04]} 40... Qc4 {[%clk 0:00:17.3]} 41. Nf4 {[%clk 0:00:04.9]} 41... d3+
{[%clk 0:00:18.3]} 42. Kh2 {[%clk 0:00:05]} 42... Bd4 {[%clk 0:00:18.5]} 43. Bc1
{[%clk 0:00:05.7]} 43... Be5 {[%clk 0:00:19.3]} 44. Rf8 {[%clk 0:00:04.7]} 44...
Qd4 {[%clk 0:00:18.8]} 45. Re7 {[%clk 0:00:03.3]} 45... d2 {[%clk 0:00:18.7]}
46. Rexe8 {[%clk 0:00:03.7]} 46... Bxf4+ {[%clk 0:00:19.1]} 47. g3 {[%clk
0:00:04]} 47... Qf2+ {[%clk 0:00:19.9]} 48. Kh1 {[%clk 0:00:05.5]} 48... dxc1=Q+
{[%clk 0:00:21.8]} 0-1

[Event "*** Titled Tuesday Blitz"]
[Site "Chess.com"]
[Date "2020.02.04"]
[Round "1"]
[White "VladDobrov"]
[Black "karinachess1"]
[Result "1-0"]
[WhiteElo "2937"]
[BlackElo "2507"]
[TimeControl "180+2"]
[EndTime "9:09:49 PST"]
[Termination "VladDobrov won on time"]

1. d4 {[%clk 0:02:53.1]} 1... Nf6 {[%clk 0:02:59.9]} 2. c4 {[%clk 0:02:54.1]}
2... e6 {[%clk 0:03:01]} 3. Nf3 {[%clk 0:02:49.3]} 3... d5 {[%clk 0:02:58.8]} 4.
Nc3 {[%clk 0:02:46.2]} 4... Be7 {[%clk 0:02:59.3]} 5. Bf4 {[%clk 0:02:46.6]}
5... O-O {[%clk 0:02:58.8]} 6. Qc2 {[%clk 0:02:35.7]} 6... c5 {[%clk 0:02:36.5]}
7. dxc5 {[%clk 0:02:32.8]} 7... Bxc5 {[%clk 0:02:19.9]} 8. e3 {[%clk 0:02:33.5]}
8... Nc6 {[%clk 0:02:12.2]} 9. a3 {[%clk 0:02:34.4]} 9... h6 {[%clk 0:01:59.9]}
10. Be2 {[%clk 0:02:33.6]} 10... Qe7 {[%clk 0:01:51.1]} 11. O-O {[%clk
0:02:33.2]} 11... dxc4 {[%clk 0:01:47]} 12. Bxc4 {[%clk 0:02:22.9]} 12... a6
{[%clk 0:01:42]} 13. Rad1 {[%clk 0:02:22.9]} 13... e5 {[%clk 0:01:13.7]} 14.
Bxh6 {[%clk 0:01:55]} 14... gxh6 {[%clk 0:00:37.1]} 15. Qg6+ {[%clk 0:01:55]}
15... Kh8 {[%clk 0:00:37.8]} 16. Qxh6+ {[%clk 0:01:55.9]} 16... Nh7 {[%clk
0:00:38.6]} 17. Nd5 {[%clk 0:01:57]} 17... Qe6 {[%clk 0:00:32.6]} 18. Qh4 {[%clk
0:01:47.1]} 18... Qg4 {[%clk 0:00:30.8]} 19. Qh6 {[%clk 0:01:25.7]} 19... Qg6
{[%clk 0:00:30.7]} 20. Qxg6 {[%clk 0:01:12]} 20... fxg6 {[%clk 0:00:31.7]} 21.
b4 {[%clk 0:01:13.1]} 21... Be7 {[%clk 0:00:27.1]} 22. Nxe7 {[%clk 0:01:12.8]}
22... Nxe7 {[%clk 0:00:29]} 23. Nxe5 {[%clk 0:01:14.5]} 23... Kg7 {[%clk
0:00:26.5]} 24. Rd6 {[%clk 0:01:11.3]} 24... Nf6 {[%clk 0:00:26.2]} 25. f3
{[%clk 0:01:11.4]} 25... b5 {[%clk 0:00:20.8]} 26. Bb3 {[%clk 0:01:11.1]} 26...
Ra7 {[%clk 0:00:22]} 27. Rc1 {[%clk 0:01:11.8]} 27... Ne8 {[%clk 0:00:19.8]} 28.
Rd3 {[%clk 0:01:12]} 28... Rc7 {[%clk 0:00:20.9]} 29. Rxc7 {[%clk 0:01:12.4]}
29... Nxc7 {[%clk 0:00:22.8]} 30. e4 {[%clk 0:01:13.6]} 30... Ne6 {[%clk
0:00:23.8]} 31. Rd6 {[%clk 0:01:14]} 31... Nf4 {[%clk 0:00:23.5]} 32. g3 {[%clk
0:01:12.4]} 32... Nh5 {[%clk 0:00:24.3]} 33. Kg2 {[%clk 0:01:13.2]} 33... Nf6
{[%clk 0:00:25.2]} 34. h4 {[%clk 0:01:13.3]} 34... Bb7 {[%clk 0:00:25.9]} 35. g4
{[%clk 0:01:12.3]} 35... Rc8 {[%clk 0:00:26.8]} 36. g5 {[%clk 0:01:13]} 36...
Ne8 {[%clk 0:00:28.2]} 37. Rd7 {[%clk 0:01:14]} 37... Rc7 {[%clk 0:00:29.6]} 38.
Rd2 {[%clk 0:01:12.5]} 38... Nc6 {[%clk 0:00:28.8]} 39. Ng4 {[%clk 0:01:10]}
39... a5 {[%clk 0:00:29.9]} 40. bxa5 {[%clk 0:00:57.9]} 40... Nxa5 {[%clk
0:00:31.8]} 41. Bd5 {[%clk 0:00:59.3]} 41... Bc8 {[%clk 0:00:30]} 42. Ne3 {[%clk
0:00:59]} 42... Nc4 {[%clk 0:00:29.4]} 43. Nxc4 {[%clk 0:00:55.2]} 43... bxc4
{[%clk 0:00:31.3]} 44. Rc2 {[%clk 0:00:54.5]} 44... c3 {[%clk 0:00:32.6]} 45.
Kf2 {[%clk 0:00:43]} 45... Ba6 {[%clk 0:00:34]} 46. Ke3 {[%clk 0:00:43.7]} 46...
Nd6 {[%clk 0:00:35.5]} 47. a4 {[%clk 0:00:44]} 47... Nc4+ {[%clk 0:00:32.6]} 48.
Kd4 {[%clk 0:00:45.4]} 48... Nd2 {[%clk 0:00:33.5]} 49. e5 {[%clk 0:00:41.9]}
49... Be2 {[%clk 0:00:26.6]} 50. Rxc3 {[%clk 0:00:39]} 50... Rxc3 {[%clk
0:00:26.9]} 51. Kxc3 {[%clk 0:00:40.9]} 51... Nxf3 {[%clk 0:00:27.9]} 52. e6
{[%clk 0:00:38.9]} 52... Kf8 {[%clk 0:00:27.3]} 53. h5 {[%clk 0:00:36.6]} 53...
gxh5 {[%clk 0:00:18]} 54. g6 {[%clk 0:00:37.8]} 54... Ng5 {[%clk 0:00:04.6]} 55.
e7+ {[%clk 0:00:25.9]} 55... Kxe7 {[%clk 0:00:04.3]} 56. g7 {[%clk 0:00:27.2]}
1-0

[Event "*** Titled Tuesday Blitz"]
[Site "Chess.com"]
[Date "2020.02.04"]
[Round "1"]
[White "Yoshkinkot"]
[Black "HarryCun"]
[Result "1-0"]
[WhiteElo "2570"]
[BlackElo "2104"]
[TimeControl "180+2"]
[EndTime "9:09:54 PST"]
[Termination "Yoshkinkot won by checkmate"]

1. e4 {[%clk 0:02:59.4]} 1... c6 {[%clk 0:03:00.6]} 2. d4 {[%clk 0:03:00]} 2...
d5 {[%clk 0:03:01.7]} 3. Nd2 {[%clk 0:03:01.3]} 3... dxe4 {[%clk 0:03:02.7]} 4.
Nxe4 {[%clk 0:03:02.9]} 4... Bf5 {[%clk 0:03:04.1]} 5. Ng3 {[%clk 0:03:04.2]}
5... Bg6 {[%clk 0:03:05.2]} 6. h4 {[%clk 0:03:05.7]} 6... h6 {[%clk 0:03:06.2]}
7. Nf3 {[%clk 0:03:07.3]} 7... Nf6 {[%clk 0:03:06.6]} 8. h5 {[%clk 0:03:06.3]}
8... Bh7 {[%clk 0:03:07.6]} 9. Bd3 {[%clk 0:03:07.2]} 9... Bxd3 {[%clk
0:03:07.8]} 10. Qxd3 {[%clk 0:03:09]} 10... e6 {[%clk 0:03:09.3]} 11. Bd2 {[%clk
0:03:09]} 11... Be7 {[%clk 0:03:04.4]} 12. O-O-O {[%clk 0:03:10]} 12... Nbd7
{[%clk 0:03:04.9]} 13. Qe2 {[%clk 0:03:08]} 13... O-O {[%clk 0:03:03.3]} 14. Nf1
{[%clk 0:03:08.1]} 14... Nb6 {[%clk 0:03:02.3]} 15. g4 {[%clk 0:03:06.7]} 15...
Qd5 {[%clk 0:02:59.7]} 16. Kb1 {[%clk 0:03:00.8]} 16... Qe4 {[%clk 0:03:00]} 17.
Qxe4 {[%clk 0:02:05.9]} 17... Nxe4 {[%clk 0:02:55.9]} 18. Be1 {[%clk 0:02:02.5]}
18... Nd5 {[%clk 0:02:16.3]} 19. c4 {[%clk 0:01:27.2]} 19... Nf4 {[%clk
0:02:05.4]} 20. N3d2 {[%clk 0:01:24]} 20... Ng5 {[%clk 0:01:50]} 21. f3 {[%clk
0:01:13]} 21... c5 {[%clk 0:01:18]} 22. dxc5 {[%clk 0:00:41.6]} 22... Bxc5
{[%clk 0:01:15.9]} 23. Nb3 {[%clk 0:00:36.7]} 23... Rad8 {[%clk 0:00:28.9]} 24.
Rxd8 {[%clk 0:00:25.7]} 24... Rxd8 {[%clk 0:00:30.8]} 25. Bd2 {[%clk 0:00:27.2]}
25... Bd6 {[%clk 0:00:27.5]} 26. Nh2 {[%clk 0:00:21.4]} 26... Ngh3 {[%clk
0:00:17.9]} 27. Kc2 {[%clk 0:00:17.5]} 27... Bc7 {[%clk 0:00:17.6]} 28. Be3
{[%clk 0:00:16.8]} 28... b6 {[%clk 0:00:18.1]} 29. Nd2 {[%clk 0:00:16.5]} 29...
Ng5 {[%clk 0:00:15.4]} 30. Nhf1 {[%clk 0:00:14.4]} 30... e5 {[%clk 0:00:14.8]}
31. Bxf4 {[%clk 0:00:14.9]} 31... exf4 {[%clk 0:00:15.4]} 32. Rh2 {[%clk
0:00:16.3]} 32... Kf8 {[%clk 0:00:11.7]} 33. Re2 {[%clk 0:00:17]} 33... f6
{[%clk 0:00:12.1]} 34. b3 {[%clk 0:00:17.7]} 34... Kf7 {[%clk 0:00:12.8]} 35.
Rf2 {[%clk 0:00:18.8]} 35... Be5 {[%clk 0:00:12.9]} 36. Ne4 {[%clk 0:00:19.3]}
36... Nxe4 {[%clk 0:00:11.8]} 37. fxe4 {[%clk 0:00:20.8]} 37... Rd4 {[%clk
0:00:13.1]} 38. Nd2 {[%clk 0:00:22.2]} 38... Ke6 {[%clk 0:00:12.4]} 39. Rf3
{[%clk 0:00:23.7]} 39... Rd6 {[%clk 0:00:12.1]} 40. Rd3 {[%clk 0:00:24.5]} 40...
Rxd3 {[%clk 0:00:12.3]} 41. Kxd3 {[%clk 0:00:26]} 41... Kd6 {[%clk 0:00:13.9]}
42. Nf3 {[%clk 0:00:27.4]} 42... Kc5 {[%clk 0:00:14.3]} 43. a3 {[%clk
0:00:28.9]} 43... b5 {[%clk 0:00:14.9]} 44. b4+ {[%clk 0:00:29.9]} 44... Kc6
{[%clk 0:00:14.6]} 45. c5 {[%clk 0:00:24.2]} 45... a5 {[%clk 0:00:14.5]} 46.
Nd4+ {[%clk 0:00:21.9]} 46... Kb7 {[%clk 0:00:12.6]} 47. Nxb5 {[%clk 0:00:21.7]}
47... axb4 {[%clk 0:00:11.4]} 48. axb4 {[%clk 0:00:22.7]} 48... Kc6 {[%clk
0:00:12.7]} 49. Nd4+ {[%clk 0:00:23.9]} 49... Kb7 {[%clk 0:00:13.4]} 50. Nf5
{[%clk 0:00:22]} 50... Ka6 {[%clk 0:00:12.6]} 51. Nxg7 {[%clk 0:00:18.5]} 51...
Kb5 {[%clk 0:00:13.4]} 52. Nf5 {[%clk 0:00:20]} 52... Kxb4 {[%clk 0:00:14.4]}
53. c6 {[%clk 0:00:21.5]} 53... Kb5 {[%clk 0:00:15]} 54. Nxh6 {[%clk 0:00:22.7]}
54... Kxc6 {[%clk 0:00:15.3]} 55. Nf5 {[%clk 0:00:20.8]} 55... Kd7 {[%clk
0:00:13.8]} 56. h6 {[%clk 0:00:21.8]} 56... Ke6 {[%clk 0:00:13.5]} 57. h7 {[%clk
0:00:22.9]} 57... f3 {[%clk 0:00:15.4]} 58. h8=Q {[%clk 0:00:23.8]} 58... f2
{[%clk 0:00:16.8]} 59. Qe8# {[%clk 0:00:25.3]} 1-0

[Event "*** Titled Tuesday Blitz"]
[Site "Chess.com"]
[Date "2020.02.04"]
[Round "1"]
[White "Msb2"]
[Black "albi1999"]
[Result "0-1"]
[WhiteElo "2852"]
[BlackElo "2488"]
[TimeControl "180+2"]
[EndTime "9:09:55 PST"]
[Termination "albi1999 won by checkmate"]

1. d4 {[%clk 0:03:01.9]} 1... Nf6 {[%clk 0:02:58.9]} 2. c4 {[%clk 0:03:03.5]}
2... e6 {[%clk 0:03:00.1]} 3. Nc3 {[%clk 0:03:05.1]} 3... Bb4 {[%clk 0:03:00.7]}
4. e3 {[%clk 0:03:06.5]} 4... O-O {[%clk 0:03:00.5]} 5. Bd2 {[%clk 0:03:08.1]}
5... d5 {[%clk 0:03:00.9]} 6. Nf3 {[%clk 0:03:08.9]} 6... b6 {[%clk 0:03:01.1]}
7. cxd5 {[%clk 0:03:10.4]} 7... exd5 {[%clk 0:02:54]} 8. Rc1 {[%clk 0:03:10.3]}
8... Bb7 {[%clk 0:02:42.9]} 9. Bd3 {[%clk 0:03:11.1]} 9... a6 {[%clk 0:02:36.3]}
10. O-O {[%clk 0:03:12.2]} 10... Bd6 {[%clk 0:02:36]} 11. Ne5 {[%clk 0:03:13.2]}
11... c5 {[%clk 0:02:28.2]} 12. f4 {[%clk 0:03:13]} 12... Nc6 {[%clk 0:02:29.5]}
13. Ng4 {[%clk 0:03:14.3]} 13... Be7 {[%clk 0:02:28]} 14. Nxf6+ {[%clk
0:03:09.7]} 14... Bxf6 {[%clk 0:02:29.9]} 15. dxc5 {[%clk 0:03:11.4]} 15... bxc5
{[%clk 0:02:31.8]} 16. b3 {[%clk 0:03:09.8]} 16... c4 {[%clk 0:02:24.6]} 17.
bxc4 {[%clk 0:02:58.7]} 17... Nb4 {[%clk 0:02:23.8]} 18. Bb1 {[%clk 0:02:59.2]}
18... dxc4 {[%clk 0:02:25]} 19. Ne4 {[%clk 0:02:57.4]} 19... Bxe4 {[%clk
0:02:25.7]} 20. Bxe4 {[%clk 0:02:57.1]} 20... c3 {[%clk 0:02:27.2]} 21. Bxa8
{[%clk 0:02:24.4]} 21... Qxd2 {[%clk 0:02:25.6]} 22. Be4 {[%clk 0:01:56.6]}
22... Qxe3+ {[%clk 0:02:23]} 23. Kh1 {[%clk 0:01:52.9]} 23... Qxe4 {[%clk
0:02:20.5]} 24. Qd6 {[%clk 0:01:49.6]} 24... Qc4 {[%clk 0:01:37.3]} 25. Rb1
{[%clk 0:01:11.3]} 25... c2 {[%clk 0:01:14.2]} 26. Qxb4 {[%clk 0:01:10.9]} 26...
cxb1=Q {[%clk 0:01:13.8]} 27. Qxc4 {[%clk 0:01:12.4]} 27... Qb5 {[%clk
0:01:12.8]} 28. Qc1 {[%clk 0:01:10.2]} 28... h6 {[%clk 0:01:08.8]} 29. h3 {[%clk
0:01:10.6]} 29... Re8 {[%clk 0:01:08.9]} 30. Rd1 {[%clk 0:01:10.3]} 30... Qe2
{[%clk 0:01:08.8]} 31. Kh2 {[%clk 0:01:05.1]} 31... Qxa2 {[%clk 0:01:05.1]} 32.
Qc6 {[%clk 0:01:05.8]} 32... Qe6 {[%clk 0:01:05.1]} 33. Rd6 {[%clk 0:01:06.4]}
33... Qe4 {[%clk 0:01:04.1]} 34. Qc1 {[%clk 0:00:54.6]} 34... a5 {[%clk
0:00:59.3]} 35. Ra6 {[%clk 0:00:55.2]} 35... a4 {[%clk 0:01:00.3]} 36. Qc7
{[%clk 0:00:55.6]} 36... h5 {[%clk 0:00:47.3]} 37. Ra7 {[%clk 0:00:55.8]} 37...
Qg6 {[%clk 0:00:47.9]} 38. Rxa4 {[%clk 0:00:51.8]} 38... h4 {[%clk 0:00:47.6]}
39. Ra3 {[%clk 0:00:49.9]} 39... Re2 {[%clk 0:00:44.2]} 40. Qc6 {[%clk
0:00:49.1]} 40... Qc2 {[%clk 0:00:41.4]} 41. Ra8+ {[%clk 0:00:44.7]} 41... Kh7
{[%clk 0:00:41.6]} 42. Qf3 {[%clk 0:00:46.2]} 42... g6 {[%clk 0:00:39.2]} 43.
Qd5 {[%clk 0:00:44.5]} 43... Qc7 {[%clk 0:00:34.6]} 44. Ra4 {[%clk 0:00:32.9]}
44... Rf2 {[%clk 0:00:31.7]} 45. Rc4 {[%clk 0:00:34]} 45... Qe7 {[%clk
0:00:29.6]} 46. Re4 {[%clk 0:00:33.8]} 46... Qa7 {[%clk 0:00:25.2]} 47. Qd1
{[%clk 0:00:22.4]} 47... Kg7 {[%clk 0:00:24.1]} 48. Ra4 {[%clk 0:00:21.2]} 48...
Qe3 {[%clk 0:00:23.9]} 49. Qg4 {[%clk 0:00:20.7]} 49... Rf1 {[%clk 0:00:22.3]}
50. Qxg6+ {[%clk 0:00:10.7]} 50... Kxg6 {[%clk 0:00:19.8]} 51. f5+ {[%clk
0:00:11.9]} 51... Kh6 {[%clk 0:00:18.8]} 52. Rxh4+ {[%clk 0:00:10.1]} 52... Bxh4
{[%clk 0:00:20.3]} 53. f6 {[%clk 0:00:12]} 53... Qg1# {[%clk 0:00:20.9]} 0-1